fUSD/lending_fUSD_20240329
["ID","MTS","AMOUNT","RATE_DAILY","PERIOD"]
[320985105,1711729844736,-151.0,0.00049315,120]
[320985107,1711729844746,-151.0,0.00049315,120]
[320985109,1711729844755,-155.738275,0.00049315,120]
[320985111,1711729844764,-151.0,0.00049315,120]
[320985113,1711729844773,-151.0,0.00049315,120]
[320985115,1711729844782,-153.205536,0.00049315,120]
[320985117,1711729844791,-363.577984,0.00049315,120]
[320985119,1711729844800,-363.577984,0.00049315,120]
[320985121,1711729844810,-800.997897,0.00049315,120]
[320985123,1711729844819,-800.997897,0.00049315,120]
[320985125,1711729844828,-363.577984,0.00049315,120]
[320985127,1711729844837,-800.997897,0.00049315,120]
[320985129,1711729844846,-363.577984,0.00049315,120]
[320985131,1711729844855,-800.997897,0.00049315,120]
[320985133,1711729844864,-151.0,0.00049315,120]
[320985135,1711729844873,-151.0,0.00049315,120]
[320985136,1711729844881,-151.0,0.00049315,120]
[320985138,1711729844890,-151.0,0.00049315,120]
[320985140,1711729844900,-151.0,0.00049315,120]
[320985142,1711729844908,-151.0,0.00049315,120]
[320985144,1711729844917,-151.0,0.00049315,120]
[320985146,1711729844926,-151.0,0.00049315,120]
[320985148,1711729844935,-643.619869,0.00049315,120]
[320985150,1711729844944,-643.619869,0.00049315,120]
[320985152,1711729844954,-643.619869,0.00049315,120]
[320985154,1711729844963,-643.619869,0.00049315,120]
[320985156,1711729844972,-151.0,0.00049315,120]
[320985158,1711729844982,-151.0,0.00049315,120]
[320985160,1711729844991,-151.0,0.00049315,120]
[320985162,1711729845000,-151.0,0.00049315,120]
[320985164,1711729845009,-151.0,0.00049315,120]
[320985166,1711729845018,-151.0,0.00049315,120]
[320985168,1711729845027,-151.0,0.00049315,120]
[320985170,1711729845037,-151.0,0.00049315,120]
[320985172,1711729845046,-151.0,0.00049315,120]
[320985174,1711729845055,-151.0,0.00049315,120]
[320985176,1711729845064,-151.0,0.00049315,120]
[320985177,1711729845073,-151.0,0.00049315,120]
[320985179,1711729845082,-151.0,0.00049315,120]
[320985181,1711729845092,-152.897036,0.00049315,120]
[320985183,1711729845102,-157.741514,0.00049315,120]
[320985185,1711729845111,-151.0,0.00049315,120]
[320985187,1711729845121,-151.0,0.00049315,120]
[320985189,1711729845130,-151.0,0.00049315,120]
[320985191,1711729845140,-151.0,0.00049315,120]
[320985193,1711729845149,-151.0,0.00049315,120]
[320985195,1711729845159,-151.0,0.00049315,120]
[320985197,1711729845168,-151.0,0.00049315,120]
[320985199,1711729845178,-151.0,0.00049315,120]
[320985201,1711729845187,-151.0,0.00049315,120]
[320985202,1711729845200,-155.225279,0.00049315,120]
[320985203,1711729845211,-151.0,0.00049315,120]
[320985204,1711729845220,-151.0,0.00049315,120]
[320985205,1711729845230,-151.0,0.00049315,120]
[320985206,1711729845241,-151.0,0.00049315,120]
[320985207,1711729845250,-151.0,0.00049315,7]
[320985208,1711729845260,-151.0,0.00049315,7]
[320985209,1711729845270,-151.0,0.00049315,120]
[320985210,1711729845279,-151.0,0.00049315,120]
[320985211,1711729845288,-151.0,0.00049315,120]
[320985212,1711729845298,-151.0,0.00049315,120]
[320985213,1711729845308,-151.0,0.00049315,120]
[320985214,1711729845316,-599.747317,0.00049315,120]
[320985215,1711729845326,-599.747317,0.00049315,120]
[320985216,1711729845334,-599.747317,0.00049315,120]
[320985217,1711729845343,-599.747317,0.00049315,120]
[320985218,1711729845353,-151.0,0.00049315,120]
[320985219,1711729845363,-151.0,0.00049315,120]
[320985220,1711729845372,-257.049137,0.00049315,120]
[320985221,1711729845382,-151.0,0.00049315,120]
[320985222,1711729845391,-151.0,0.00049315,120]
[320985223,1711729845400,-151.0,0.00049315,120]
[320985224,1711729845410,-152.589117,0.00049315,120]
[320985225,1711729845418,-151.0,0.00049315,120]
[320985226,1711729845427,-151.0,0.00049315,120]
[320985227,1711729845436,-151.0,0.00049315,30]
[320985228,1711729845448,-151.0,0.00049315,120]
[320985229,1711729845459,-151.0,0.00049315,30]
[320985230,1711729845468,-151.0,0.00049315,120]
[320985231,1711729845477,-3181.882643,0.00049315,120]
[320985232,1711729845486,-151.46221665,0.00049377,42]
[320985233,1711729845495,-230.83,0.000494,7]
[320985234,1711729845508,-100000.0,0.0004945,120]
[320985235,1711729845517,-302.06563,0.00049498,105]
[320985236,1711729845526,-471.098439,0.00049498,99]
[320985237,1711729845535,-652.78,0.00049523,2]
[320985238,1711729845544,-100000.0,0.0004958,20]
[320985239,1711729845554,-6846.31548409,0.00049591,26]
[320985240,1711729845562,-42740.3412474,0.00049716,2]
[320985241,1711729845571,-160.61807745,0.00049759,30]
[320985242,1711729845580,-152.19513702,0.00049761,30]
[320985243,1711729845590,-150.0,0.00049782,30]
[320985244,1711729845598,-150.0,0.00049782,30]
[320985245,1711729845607,-150.0,0.00049782,30]
[320985246,1711729845617,-150.0,0.00049782,30]
[320985247,1711729845626,-150.0,0.00049782,30]
[320985260,1711729845824,-314.06563,0.00049798,100]
[320985261,1711729845833,-921.84995903,0.000498,14]
[320985262,1711729845843,-325.02005493,0.000498,46]
[320985263,1711729845852,-198.76335864,0.000498,83]
[320985264,1711729845861,-191.24444444,0.00049808,120]
[320985265,1711729845871,-2694.67560404,0.000499,120]
[320985266,1711729845880,-341715.92531143,0.000499,30]
[320985267,1711729845889,-500000.0,0.000499,22]
[320985268,1711729845899,-449914.5233014,0.000499,23]
[320985269,1711729845908,-151.0,0.000499,120]
[320985270,1711729845918,-151.0,0.000499,120]
[320985271,1711729845927,-229.217968,0.000499,120]
[320985272,1711729845936,-158.31221,0.000499,120]
[320985273,1711729845945,-151.0,0.000499,120]
[320985274,1711729845955,-151.0,0.000499,120]
[320985275,1711729845964,-151.0,0.000499,120]
[320985276,1711729845974,-151.0,0.000499,120]
[320985277,1711729845983,-151.94062,0.000499,120]
[320985278,1711729845993,-151.0,0.000499,120]
[320985279,1711729846002,-151.0,0.000499,120]
[320985280,1711729846011,-151.0,0.000499,120]
[320985281,1711729846020,-151.0,0.000499,7]
[320985282,1711729846030,-277.325005,0.000499,7]
[320985283,1711729846039,-151.0,0.000499,120]
[320985284,1711729846048,-151.0,0.000499,120]
[320985285,1711729846058,-151.0,0.000499,120]
[320985286,1711729846067,-151.0,0.000499,120]
[320985287,1711729846076,-151.0,0.000499,120]
[320985288,1711729846085,-151.0,0.000499,120]
[320985289,1711729846094,-151.0,0.000499,14]
[320985290,1711729846104,-151.0,0.000499,14]
[320985291,1711729846113,-151.0,0.000499,120]
[320985292,1711729846123,-151.0,0.000499,120]
[320985293,1711729846132,-151.0,0.000499,120]
[320985294,1711729846141,-151.0,0.000499,120]
[320985295,1711729846151,-151.0,0.000499,120]
[320985296,1711729846160,-151.0,0.000499,120]
[320985297,1711729846170,-296.463927,0.000499,120]
[320985298,1711729846184,-296.463927,0.000499,120]
[320985299,1711729846193,-151.0,0.000499,120]
[320985300,1711729846202,-226.79276,0.000499,120]
[320985301,1711729846215,-226.79276,0.000499,120]
[320985302,1711729846224,-151.0,0.000499,120]
[320985303,1711729846234,-284.70867,0.000499,30]
[320985304,1711729846243,-284.70867,0.000499,30]
[320985305,1711729846252,-151.0,0.000499,120]
[320985306,1711729846263,-151.0,0.000499,120]
[320985307,1711729846273,-213.581579,0.000499,120]
[320985308,1711729846282,-151.0,0.000499,120]
[320985309,1711729846291,-213.581579,0.000499,120]
[320985310,1711729846301,-295.556579,0.000499,45]
[320985311,1711729846310,-151.0,0.000499,120]
[320985312,1711729846320,-151.0,0.000499,120]
[320985313,1711729846329,-171.135958,0.000499,120]
[320985314,1711729846338,-736.095125,0.000499,120]
[320985315,1711729846347,-528.127388,0.000499,120]
[320985316,1711729846357,-736.095125,0.000499,120]
[320985317,1711729846366,-528.127388,0.000499,120]
[320985318,1711729846375,-151.0,0.000499,7]
[320985319,1711729846384,-452.885485,0.000499,120]
[320985320,1711729846393,-452.885485,0.000499,120]
[320985321,1711729846403,-151.0,0.000499,120]
[320985322,1711729846412,-315.302384,0.000499,120]
[320985323,1711729846421,-154.552263,0.000499,120]
[320985324,1711729846431,-315.302384,0.000499,120]
[320985325,1711729846439,-153.37579,0.000499,120]
[320985326,1711729846448,-860.247712,0.000499,60]
[320985327,1711729846459,-860.247712,0.000499,60]
[320985328,1711729846468,-151.0,0.000499,120]
[320985329,1711729846477,-213.592012,0.000499,120]
[320985330,1711729846486,-265.352896,0.000499,120]
[320985331,1711729846496,-151.0,0.000499,120]
[320985332,1711729846505,-266.88937,0.000499,120]
[320985333,1711729846515,-266.88937,0.000499,120]
[320985334,1711729846524,-160.207309,0.000499,120]
[320985335,1711729846534,-151.0,0.000499,120]
[320985336,1711729846543,-172.716002,0.000499,30]
[320985337,1711729846553,-172.716002,0.000499,30]
[320985338,1711729846563,-151.0,0.000499,120]
[320985339,1711729846573,-151.0,0.000499,120]
[320985340,1711729846584,-151.0,0.000499,120]
[320985341,1711729846594,-151.0,0.000499,120]
[320985342,1711729846604,-151.0,0.000499,120]
[320985343,1711729846616,-151.0,0.000499,120]
[320985344,1711729846625,-363.577984,0.000499,120]
[320985345,1711729846634,-800.997897,0.000499,120]
[320985346,1711729846644,-363.577984,0.000499,120]
[320985347,1711729846655,-800.997897,0.000499,120]
[320985348,1711729846666,-151.0,0.000499,120]
[320985349,1711729846675,-151.0,0.000499,120]
[320985350,1711729846685,-151.0,0.000499,120]
[320985351,1711729846695,-151.0,0.000499,120]
[320985352,1711729846705,-643.619869,0.000499,120]
[320985353,1711729846716,-643.619869,0.000499,120]
[320985354,1711729846726,-151.0,0.000499,120]
[320985355,1711729846737,-151.0,0.000499,120]
[320985356,1711729846747,-151.0,0.000499,120]
[320985357,1711729846757,-151.0,0.000499,120]
[320985358,1711729846767,-151.0,0.000499,120]
[320985359,1711729846778,-151.0,0.000499,120]
[320985360,1711729846788,-151.0,0.000499,120]
[320985361,1711729846798,-151.0,0.000499,120]
[320985362,1711729846808,-151.0,0.000499,120]
[320985363,1711729846818,-151.0,0.000499,120]
[320985364,1711729846827,-151.0,0.000499,120]
[320985365,1711729846837,-151.0,0.000499,120]
[320985366,1711729846846,-151.0,0.000499,7]
[320985367,1711729846856,-151.0,0.000499,120]
[320985368,1711729846866,-151.0,0.000499,120]
[320985369,1711729846875,-599.747317,0.000499,120]
[320985370,1711729846885,-599.747317,0.000499,120]
[320985371,1711729846895,-151.0,0.000499,120]
[320985372,1711729846905,-151.0,0.000499,120]
[320985373,1711729846915,-151.0,0.000499,30]
[320985374,1711729846924,-151.0,0.000499,120]
[320985375,1711729846934,-151.0,0.000499,30]
[320985376,1711729846944,-151.0,0.000499,120]
[320985378,1711729846954,-3181.882643,0.000499,120]
[320985380,1711729846966,-409.62,0.00049912,30]
[320985382,1711729846976,-409.62,0.00049912,30]
[320985383,1711729846985,-409.62,0.00049912,30]
[320985385,1711729846995,-409.62,0.00049912,30]
[320985386,1711729847005,-409.62,0.00049912,30]
[320985388,1711729847015,-925.23,0.00049912,30]
[320985389,1711729847025,-925.23,0.00049912,30]
[320985390,1711729847035,-896.89,0.00049912,30]
[320985391,1711729847046,-915.87,0.00049912,30]
[320985392,1711729847056,-100000.0,0.0004995,10]
[320985393,1711729847065,-152038.2833657,0.00049966,2]
[320985394,1711729847075,-150.0,0.00049999,30]
[320985395,1711729847084,-5000.0,0.0005,30]
[320985396,1711729847093,-27047.25475744,0.0005,4]
[320985397,1711729847103,-449.69178296,0.0005,30]
[320985398,1711729847112,-309.56196217,0.0005,2]
[320985399,1711729847123,-20179.81560078,0.0005,4]
[320985400,1711729847132,-18670.71509359,0.0005,120]
[320985401,1711729847142,-740.69425899,0.0005,120]
[320985402,1711729847152,-2662.67006318,0.0005,30]
[320985403,1711729847162,-839.39559315,0.0005,2]
[320985404,1711729847172,-2214.22619661,0.0005,30]
[320985405,1711729847182,-151.0,0.0005,120]
[320985406,1711729847195,-758.40255453,0.0005,14]
[320985407,1711729847204,-150.83327328,0.0005,2]
[320985408,1711729847215,-326.73252317,0.0005,120]
[320985409,1711729847224,-1015.0,0.0005,31]
[320985410,1711729847235,-1000.0,0.0005,30]
[320985411,1711729847244,-291032.0,0.0005,120]
[320985412,1711729847254,-305.11,0.00050049,30]
[320985413,1711729847263,-262.86,0.00050049,30]
[320985414,1711729847275,-432.75,0.00050049,30]
[320985415,1711729847286,-161.51,0.00050049,30]
[320985416,1711729847295,-416.02,0.00050049,30]
[320985417,1711729847305,-416.02,0.00050049,30]
[320985418,1711729847314,-161.51,0.00050049,30]
[320985419,1711729847323,-150.0,0.00050049,30]
[320985420,1711729847333,-161.51,0.00050049,30]
[320985421,1711729847342,-150.0,0.00050049,30]
[320985422,1711729847352,-416.02,0.00050049,30]
[320985423,1711729847361,-161.51,0.00050049,30]
[320985424,1711729847370,-150.0,0.00050049,30]
[320985425,1711729847399,-416.02,0.00050049,30]
[320985426,1711729847410,-150.0,0.00050049,30]
[320985427,1711729847419,-416.02,0.00050049,30]
[320985428,1711729847430,-150.0,0.00050049,30]
[320985429,1711729847439,-161.51,0.00050049,30]
[320985430,1711729847449,-150.0,0.00050049,30]
[320985431,1711729847461,-416.02,0.00050049,30]
[320985432,1711729847471,-150.0,0.00050049,30]
[320985433,1711729847482,-161.51,0.00050049,30]
[320985434,1711729847492,-150.0,0.00050049,30]
[320985435,1711729847502,-246.11,0.00050056,30]
[320985436,1711729847512,-2942.20342858,0.0005012,50]
[320985437,1711729847523,-1511.47,0.00050136,64]
[320985438,1711729847533,-155.74797488,0.00050148,60]
[320985439,1711729847543,-314.065432,0.00050198,92]
[320985440,1711729847554,-307.63,0.000502,7]
[320985441,1711729847564,-160.61807745,0.00050368,60]
[320985442,1711729847574,-155.93084442,0.00050374,60]
[320985443,1711729847583,-298.0,0.000504,7]
[320985444,1711729847595,-191.24444444,0.00050411,120]
[320985445,1711729847605,-151.46221665,0.00050417,46]
[320985446,1711729847615,-157.032813,0.00050498,100]
[320985447,1711729847626,-314.06563,0.00050498,107]
[320985448,1711729847636,-6846.31548409,0.00050661,27]
[320985449,1711729847646,-150.0,0.00050664,30]
[320985450,1711729847656,-150.0,0.00050664,30]
[320985451,1711729847668,-150.0,0.00050664,30]
[320985452,1711729847678,-150.0,0.00050664,30]
[320985453,1711729847688,-150.0,0.00050664,30]
[320985454,1711729847698,-150.0,0.00050664,30]
[320985455,1711729847711,-150.0,0.00050664,30]
[320985456,1711729847721,-150.0,0.00050664,30]
[320985457,1711729847731,-150.0,0.00050664,30]
[320985458,1711729847742,-150.0,0.00050664,30]
[320985459,1711729847752,-150.0,0.00050664,30]
[320985460,1711729847763,-150.0,0.00050664,30]
[320985461,1711729847774,-150.0,0.00050664,30]
[320985462,1711729847783,-150.0,0.00050664,30]
[320985463,1711729847794,-150.0,0.00050664,30]
[320985464,1711729847804,-150.0,0.00050664,30]
[320985465,1711729847815,-3000.0,0.00050684,120]
[320985466,1711729847826,-5812.50497796,0.0005074,2]
[320985467,1711729847836,-155.032716,0.00050798,99]
[320985468,1711729847847,-314.06563,0.00050798,100]
[320985469,1711729847857,-13373.70903462,0.000508,120]
[320985470,1711729847868,-17598.0,0.000508,120]
[320985471,1711729847878,-230.83,0.000508,7]
[320985472,1711729847887,-3000.0,0.00050821,120]
[320985473,1711729847898,-161.91,0.00050844,120]
[320985474,1711729847908,-925.23,0.00050849,30]
[320985475,1711729847918,-925.23,0.00050849,30]
[320985476,1711729847927,-925.23,0.00050849,30]
[320985477,1711729847937,-925.23,0.00050849,30]
[320985478,1711729847947,-302.9,0.00050871,30]
[320985479,1711729847957,-150.0,0.00050871,30]
[320985480,1711729847968,-150.0,0.00050871,30]
[320985481,1711729847978,-150.0,0.00050871,30]
[320985482,1711729847988,-150.0,0.00050871,30]
[320985483,1711729847998,-150.0,0.00050871,30]
[320985484,1711729848008,-150.0,0.00050871,30]
[320985485,1711729848018,-150.0,0.00050871,30]
[320985486,1711729848028,-150.0,0.00050871,30]
[320985487,1711729848037,-150.0,0.00050871,30]
[320985488,1711729848047,-150.0,0.00050871,30]
[320985489,1711729848057,-161.51,0.00050871,30]
[320985490,1711729848066,-161.51,0.00050871,30]
[320985491,1711729848075,-300.0,0.00050871,30]
[320985492,1711729848084,-161.51,0.00050871,30]
[320985493,1711729848094,-161.51,0.00050871,30]
[320985494,1711729848103,-161.51,0.00050871,30]
[320985495,1711729848112,-416.02,0.00050871,30]
[320985496,1711729848122,-161.51,0.00050871,30]
[320985497,1711729848132,-416.02,0.00050871,30]
[320985498,1711729848141,-416.02,0.00050871,30]
[320985499,1711729848150,-416.02,0.00050871,30]
[320985500,1711729848160,-416.02,0.00050871,30]
[320985501,1711729848170,-416.02,0.00050871,30]
[320985502,1711729848179,-408.69,0.00050871,30]
[320985503,1711729848190,-159.83,0.00050871,30]
[320985504,1711729848201,-753.81056355,0.000509,120]
[320985505,1711729848211,-753.8105634,0.000509,120]
[320985506,1711729848220,-753.8105634,0.000509,120]
[320985507,1711729848231,-753.8105634,0.000509,120]
[320985508,1711729848240,-753.8105634,0.000509,120]
[320985509,1711729848249,-753.8105634,0.000509,120]
[320985510,1711729848259,-753.8105634,0.000509,120]
[320985511,1711729848268,-753.8105634,0.000509,120]
[320985512,1711729848279,-753.8105634,0.000509,120]
[320985513,1711729848289,-753.8105634,0.000509,120]
[320985514,1711729848299,-753.8105634,0.000509,120]
[320985515,1711729848308,-753.8105634,0.000509,120]
[320985516,1711729848317,-753.8105634,0.000509,120]
[320985517,1711729848327,-753.8105634,0.000509,120]
[320985518,1711729848337,-753.8105634,0.000509,120]
[320985519,1711729848346,-753.8105634,0.000509,120]
[320985520,1711729848356,-753.8105634,0.000509,120]
[320985521,1711729848376,-753.8105634,0.000509,120]
[320985522,1711729848386,-753.8105634,0.000509,120]
[320985523,1711729848395,-753.8105634,0.000509,120]
[320985524,1711729848405,-3000.0,0.00050958,120]
[320985525,1711729848415,-1511.47,0.00050958,68]
[320985526,1711729848424,-517.46,0.00050986,30]
[320985527,1711729848433,-303.42,0.00050986,60]
[320985528,1711729848442,-150.0,0.00050986,30]
[320985529,1711729848452,-150.0,0.00050986,30]
[320985530,1711729848462,-415.7,0.00050986,30]
[320985531,1711729848471,-161.39,0.00050986,30]
[320985532,1711729848480,-150.0,0.00050986,30]
[320985533,1711729848490,-150.0,0.00050986,30]
[320985534,1711729848499,-150.0,0.00050986,30]
[320985535,1711729848508,-150.0,0.00050986,30]
[320985536,1711729848517,-6053.60651433,0.00051,20]
[320985537,1711729848526,-15186.1777539,0.00051,120]
[320985538,1711729848535,-450.0,0.00051,120]
[320985539,1711729848544,-1000.0,0.00051,31]
[320985540,1711729848553,-700.0,0.00051,3]
[320985541,1711729848562,-191.24444444,0.00051014,120]
[320985542,1711729848573,-157.06071321,0.00051029,60]
[320985543,1711729848584,-3000.0,0.00051095,120]
[320985544,1711729848594,-1621.01277513,0.000511,30]
[320985545,1711729848603,-163.45089843,0.00051131,60]
[320985546,1711729848613,-198.76335859,0.00051144,88]
[320985547,1711729848623,-314.065432,0.00051198,95]
[320985548,1711729848633,-3000.0,0.00051232,120]
[320985549,1711729848642,-161.668355,0.00051241,30]
[320985550,1711729848652,-307.63,0.000513,7]
[320985551,1711729848661,-629.0,0.00051329,7]
[320985552,1711729848670,-3000.0,0.00051369,120]
[320985553,1711729848679,-3443.62,0.00051386,120]
[320985554,1711729848688,-298.0,0.000514,7]
[320985555,1711729848697,-157.73076923,0.00051437,60]
[320985556,1711729848708,-151.46221665,0.00051457,50]
[320985557,1711729848717,-314.06563,0.00051498,109]
[320985558,1711729848726,-314.065626,0.00051498,101]
[320985559,1711729848736,-151.0,0.000515,120]
[320985560,1711729848745,-151.0,0.000515,120]
[320985561,1711729848755,-151.0,0.000515,120]
[320985562,1711729848764,-155.236905,0.000515,120]
[320985563,1711729848773,-151.0,0.000515,14]
[320985564,1711729848782,-285.063089,0.000515,14]
[320985565,1711729848791,-151.0,0.000515,120]
[320985566,1711729848801,-151.0,0.000515,120]
[320985567,1711729848809,-151.0,0.000515,120]
[320985568,1711729848817,-151.0,0.000515,120]
[320985569,1711729848826,-151.0,0.000515,120]
[320985570,1711729848836,-151.0,0.000515,120]
[320985571,1711729848845,-296.463927,0.000515,120]
[320985572,1711729848854,-296.463927,0.000515,120]
[320985573,1711729848863,-151.0,0.000515,120]
[320985574,1711729848872,-226.79276,0.000515,120]
[320985575,1711729848882,-226.79276,0.000515,120]
[320985576,1711729848889,-151.0,0.000515,120]
[320985577,1711729848896,-284.70867,0.000515,30]
[320985578,1711729848902,-284.70867,0.000515,30]
[320985579,1711729848910,-151.0,0.000515,120]
[320985580,1711729848916,-151.0,0.000515,120]
[320985581,1711729848922,-213.581579,0.000515,120]
[320985582,1711729848928,-151.0,0.000515,120]
[320985583,1711729848935,-213.581579,0.000515,120]
[320985584,1711729848942,-151.0,0.000515,120]
[320985585,1711729848949,-151.0,0.000515,120]
[320985586,1711729848956,-736.095125,0.000515,120]
[320985587,1711729848963,-528.127388,0.000515,120]
[320985588,1711729848971,-736.095125,0.000515,120]
[320985589,1711729848977,-528.127388,0.000515,120]
[320985590,1711729848984,-151.0,0.000515,7]
[320985591,1711729848991,-452.885485,0.000515,120]
[320985592,1711729848998,-452.885485,0.000515,120]
[320985593,1711729849005,-152.25,0.000515,7]
[320985594,1711729849014,-152.25,0.000515,7]
[320985595,1711729849023,-152.25,0.000515,7]
[320985596,1711729849032,-152.25,0.000515,7]
[320985597,1711729849041,-152.25,0.000515,7]
[320985598,1711729849050,-152.25,0.000515,7]
[320985599,1711729849059,-152.25,0.000515,7]
[320985600,1711729849068,-152.25,0.000515,7]
[320985601,1711729849077,-152.25,0.000515,7]
[320985602,1711729849086,-151.0,0.000515,120]
[320985603,1711729849094,-315.302384,0.000515,120]
[320985604,1711729849103,-315.302384,0.000515,120]
[320985605,1711729849112,-151.0,0.000515,120]
[320985606,1711729849120,-151.0,0.000515,120]
[320985607,1711729849129,-363.577984,0.000515,120]
[320985608,1711729849138,-800.997897,0.000515,120]
[320985609,1711729849147,-363.577984,0.000515,120]
[320985610,1711729849156,-800.997897,0.000515,120]
[320985611,1711729849166,-151.0,0.000515,120]
[320985612,1711729849176,-151.0,0.000515,120]
[320985613,1711729849185,-151.0,0.000515,120]
[320985614,1711729849198,-151.0,0.000515,120]
[320985615,1711729849209,-643.619869,0.000515,120]
[320985616,1711729849218,-643.619869,0.000515,120]
[320985617,1711729849227,-151.0,0.000515,120]
[320985618,1711729849236,-151.0,0.000515,120]
[320985619,1711729849245,-151.0,0.000515,120]
[320985620,1711729849254,-151.0,0.000515,120]
[320985621,1711729849263,-151.0,0.000515,120]
[320985622,1711729849274,-151.0,0.000515,120]
[320985623,1711729849283,-151.0,0.000515,120]
[320985624,1711729849293,-151.0,0.000515,120]
[320985625,1711729849302,-151.0,0.000515,120]
[320985626,1711729849312,-151.0,0.000515,120]
[320985627,1711729849321,-151.0,0.000515,120]
[320985628,1711729849330,-151.0,0.000515,7]
[320985629,1711729849339,-151.0,0.000515,120]
[320985630,1711729849350,-152.417897,0.000515,120]
[320985631,1711729849359,-6355.05,0.000515,7]
[320985632,1711729849369,-6355.05,0.000515,7]
[320985633,1711729849379,-6355.05,0.000515,7]
[320985634,1711729849388,-6355.05,0.000515,7]
[320985635,1711729849397,-6355.05,0.000515,7]
[320985636,1711729849407,-6355.05,0.000515,7]
[320985637,1711729849416,-6355.05,0.000515,7]
[320985638,1711729849425,-6355.05,0.000515,7]
[320985639,1711729849434,-6355.05,0.000515,7]
[320985640,1711729849444,-6355.05,0.000515,7]
[320985641,1711729849453,-6355.05,0.000515,7]
[320985642,1711729849465,-6355.05,0.000515,7]
[320985643,1711729849474,-6355.05,0.000515,7]
[320985644,1711729849483,-6355.05,0.000515,7]
[320985645,1711729849492,-6355.05,0.000515,7]
[320985646,1711729849501,-6355.05,0.000515,7]
[320985647,1711729849510,-6355.05,0.000515,7]
[320985648,1711729849519,-6355.05,0.000515,7]
[320985649,1711729849528,-6355.05,0.000515,7]
[320985650,1711729849537,-6355.05,0.000515,7]
[320985651,1711729849546,-599.747317,0.000515,120]
[320985652,1711729849554,-599.747317,0.000515,120]
[320985653,1711729849563,-151.0,0.000515,120]
[320985654,1711729849573,-151.0,0.000515,120]
[320985655,1711729849583,-151.0,0.000515,30]
[320985656,1711729849594,-151.0,0.000515,120]
[320985657,1711729849604,-151.0,0.000515,30]
[320985658,1711729849614,-151.0,0.000515,120]
[320985659,1711729849624,-151.0,0.00051506,7]
[320985660,1711729849634,-151.0,0.00051506,120]
[320985661,1711729849643,-151.0,0.00051506,120]
[320985662,1711729849653,-152.902884,0.00051506,120]
[320985663,1711729849662,-151.0,0.00051506,120]
[320985664,1711729849671,-151.0,0.00051506,120]
[320985665,1711729849681,-3000.0,0.00051506,120]
[320985666,1711729849690,-2142.37218659,0.0005155,120]
[320985667,1711729849700,-151.0,0.00051589,120]
[320985668,1711729849712,-163.45089843,0.00051594,60]